fUST/lending_fUST_20240419
["ID","MTS","AMOUNT","RATE_DAILY","PERIOD"]
[322919220,1713505261793,154.86062544,0.00020101,2]
[322919221,1713505261826,155.46636242,0.00020101,2]
[322919222,1713505266516,1612.84975599,0.00020101,2]
[322919223,1713505274524,155.59650877,0.00020101,2]
[322919224,1713505279742,234.33631098,0.00019908,2]
[322919225,1713505281099,539.43970623,0.00020101,2]
[322919226,1713505282232,525.95262634,0.00020101,2]
[322919227,1713505289260,2585.8857477,0.00020101,2]
[322919228,1713505291360,154.86062544,0.00020101,2]
[322919229,1713505291878,229.62463008,0.000189,2]
[322919230,1713505292671,154.86062544,0.00020101,2]
[322919231,1713505293140,1089.6608071,0.00020101,2]
[322919232,1713505294118,1576.32789394,0.00020101,2]
[322919233,1713505296913,161.90783343,0.00020101,2]
[322919234,1713505298372,1619.50325324,0.00020101,2]
[322919236,1713505341473,795.78062991,0.00020017,2]
[322919239,1713505351272,155.01751563,0.00020101,2]
[322919241,1713505358769,525.95262634,0.00020101,2]
[322919243,1713505361782,539.43970623,0.00020101,2]
[322919244,1713505364223,154.86062544,0.00020101,2]
[322919245,1713505365496,161.90783343,0.00020101,2]
[322919246,1713505366269,2585.8857477,0.00020101,2]
[322919247,1713505369085,564.09332327,0.00020101,2]
[322919248,1713505370336,408.57291394,0.00020101,2]
[322919249,1713505370607,1576.32789394,0.00020101,2]
[322919251,1713505372450,938.28349689,0.00020101,2]
[322919252,1713505373187,195.49338163,0.00020101,2]
[322919253,1713505377792,1310.7097611,0.000201,2]
[322919254,1713505381150,154.86062544,0.00020101,2]
[322919255,1713505382003,354.53717402,0.00020101,2]
[322919256,1713505383640,1089.6608071,0.00020101,2]
[322919257,1713505384398,6923.51821649,0.00020101,2]
[322919258,1713505386894,6923.51821649,0.00020101,2]
[322919260,1713505387998,197.81369102,0.00020017,2]
[322919261,1713505388769,193.45780411,0.00020101,2]
[322919262,1713505389260,189.04656977,0.00020101,2]
[322919263,1713505391027,6923.51821649,0.00020101,2]
[322919264,1713505391887,6923.51821649,0.00020101,2]
[322919265,1713505394303,474.41717425,0.00020101,2]
[322919266,1713505394767,168.9548297,0.00019178,2]
[322919268,1713505398120,154.86062544,0.00020101,2]
[322919269,1713505398900,6923.51821649,0.00020101,2]
[322919270,1713505399565,9563.28200328,0.00020101,2]
[322919271,1713505403892,6923.51821649,0.00020101,2]
[322919273,1713505405811,173.10065806,0.00020101,2]
[322919274,1713505406007,468.09250976,0.00020101,2]
[322919275,1713505407444,300.0,0.00020101,2]
[322919276,1713505408397,6923.51821649,0.00020101,2]
[322919278,1713505415543,1277.68472737,0.00020101,2]
[322919279,1713505418061,5797.00010816,0.00020101,2]
[322919280,1713505419897,623.31363126,0.00020101,2]
[322919281,1713505421323,602.88452761,0.00020101,2]
[322919282,1713505423605,673.02624515,0.00020101,2]
[322919283,1713505425836,224.4010429,0.00020008,2]
[322919284,1713505427941,207.7309784,0.00020101,2]
[322919285,1713505430863,241.3290765,0.00020101,2]
[322919286,1713505433470,2585.8857477,0.00020101,2]
[322919287,1713505434833,154.86062544,0.00020101,2]
[322919288,1713505434910,938.28349689,0.00020101,2]
[322919289,1713505436825,247.03012608,0.00020101,2]
[322919290,1713505437255,525.95262634,0.00020101,2]
[322919291,1713505438725,539.43970623,0.00020101,2]
[322919292,1713505440504,186.06822211,0.00020101,2]
[322919293,1713505443600,564.09332327,0.00020101,2]
[322919294,1713505444690,154.86062544,0.00020101,2]
[322919295,1713505444768,308.26347028,0.00020101,2]
[322919296,1713505447119,1576.32789394,0.00020101,2]
[322919297,1713505447336,154.86062544,0.00020101,2]
[322919298,1713505448194,2126.51224034,0.00020101,2]
[322919299,1713505449314,154.86062544,0.000201,2]
[322919300,1713505453563,977.06231715,0.00020101,2]
[322919301,1713505454414,354.53717402,0.00020101,2]
[322919302,1713505456123,1089.6608071,0.00020101,2]
[322919303,1713505457120,361.75151942,0.00020101,2]
[322919304,1713505458829,408.57291394,0.00020101,2]
[322919305,1713505459272,193.45780411,0.00020101,2]
[322919306,1713505460424,154.86062544,0.00020101,2]
[322919307,1713505465677,154.86062544,0.000201,2]
[322919309,1713505466291,927.01787814,0.000201,2]
[322919310,1713505467634,189.04656977,0.00020101,2]
[322919312,1713505477490,268.68794654,0.00020005,2]
[322919314,1713505501361,602.88452761,0.00020101,2]
[322919315,1713505502494,5797.00010816,0.00020101,2]
[322919317,1713505506550,241.3290765,0.00020101,2]
[322919318,1713505510787,2585.8857477,0.00020101,2]
[322919319,1713505513161,326.475937,0.00019105,2]
[322919320,1713505513192,154.86062544,0.00020101,2]
[322919321,1713505513759,525.95262634,0.00020101,2]
[322919322,1713505513792,308.26347028,0.00020101,2]
[322919323,1713505515460,247.03012608,0.00020101,2]
[322919324,1713505518636,539.43970623,0.00020101,2]
[322919325,1713505519056,186.06822211,0.00020101,2]
[322919326,1713505519642,1576.32789394,0.00020101,2]
[322919327,1713505522908,354.53717402,0.00020101,2]
[322919328,1713505523827,154.86062544,0.00020101,2]
[322919329,1713505524328,1489.22314453,0.00020101,2]
[322919330,1713505526977,469.26939572,0.00020101,2]
[322919331,1713505531777,193.45780411,0.00020101,2]
[322919332,1713505535344,474.41717425,0.00020101,2]
[322919333,1713505536974,154.86062544,0.00020101,2]
[322919334,1713505541815,1059.21,0.00025,30]
[322919335,1713505547124,154.86062544,0.00020101,2]
[322919336,1713505550780,5328.16514486,0.00020101,2]
[322919337,1713505560536,300.0,0.00020101,2]
[322919338,1713505561458,300.0,0.00020101,2]
[322919339,1713505592672,458.44351514,0.00020101,2]
[322919340,1713505592709,226.05658652,0.00020101,2]
[322919341,1713505592743,220.23146297,0.00020101,2]
[322919342,1713505593189,153.08308672,0.000189,2]
[322919343,1713505626441,300.0,0.00020101,2]
[322919344,1713505628541,300.0,0.00020101,2]
[322919345,1713505648813,696.30805118,0.00020003,2]
[322919346,1713505657004,300.0,0.00020101,2]
[322919347,1713505659671,539.43970623,0.00020101,2]
[322919348,1713505662849,154.86062544,0.00020101,2]
[322919349,1713505665422,354.53717402,0.00020101,2]
[322919350,1713505666259,154.86062544,0.00020101,2]
[322919352,1713505670786,525.95262634,0.00020101,2]
[322919353,1713505672060,24900.0,0.00019857,2]
[322919354,1713505680597,300.0,0.00020101,2]
[322919355,1713505681465,300.0,0.00020101,2]
[322919356,1713505695603,5328.16514486,0.00020101,2]
[322919357,1713505722461,1931.50104761,0.00020101,2]
[322919359,1713505740618,300.0,0.00020101,2]
[322919360,1713505741398,300.0,0.00020101,2]
[322919362,1713505758822,927.01787814,0.00020101,2]
[322919363,1713505791992,300.0,0.00020101,2]
[322919365,1713505800594,300.0,0.00020101,2]
[322919366,1713505802591,300.0,0.00020101,2]
[322919367,1713505824141,179.52083432,0.00020003,2]
[322919396,1713505833742,318.7457394,0.00019875,2]
[322919397,1713505834623,5328.16514486,0.00020101,2]
[322919408,1713505838040,-673.02624515,0.00020102,2]
[322919409,1713505838050,-468.09250976,0.00020102,2]
[322919410,1713505838059,-72510.41728967,0.00020102,2]
[322919411,1713505838068,-5174.35720712,0.00020103,2]
[322919412,1713505838077,-417.78470663,0.00020103,2]
[322919413,1713505838086,-168.85263609,0.00020103,2]
[322919414,1713505838095,-2552.25621511,0.00020103,2]
[322919415,1713505838104,-307.87734886,0.00020103,2]
[322919416,1713505838113,-185.46918054,0.00020103,2]
[322919417,1713505838122,-814.65581392,0.00020106,2]
[322919418,1713505838131,-173.52556353,0.00020106,2]
[322919419,1713505838140,-513.20449992,0.00020106,2]
[322919420,1713505838149,-330.84784148,0.00020106,2]
[322919421,1713505838158,-607.31638852,0.00020106,2]
[322919422,1713505838167,-155.47312554,0.00020106,2]
[322919423,1713505838176,-192.53106712,0.00020106,2]
[322919424,1713505838186,-1394.85496318,0.00020106,2]
[322919425,1713505838195,-953.72448061,0.00020106,2]
[322919426,1713505838204,-307.25230248,0.00020106,2]
[322919427,1713505838213,-932.64171761,0.00020106,2]
[322919428,1713505838222,-243.05725816,0.00020107,2]
[322919429,1713505838231,-157.9305512,0.00020107,2]
[322919430,1713505838240,-155.82129041,0.00020109,2]
[322919431,1713505838248,-157.34558526,0.00020109,2]
[322919432,1713505838257,-739.51724659,0.00020109,2]
[322919433,1713505838266,-259.42639783,0.00020109,2]
[322919434,1713505838275,-1314.44140118,0.00020109,2]
[322919435,1713505838284,-158.12391907,0.0002011,2]
[322919436,1713505838293,-199.61920808,0.00020162,2]
[322919437,1713505838302,-783.65879617,0.00020167,2]
[322919438,1713505838311,-155.05694294,0.00020186,2]
[322919439,1713505838319,-2621.14214872,0.00020186,2]
[322919440,1713505838328,-418.68097223,0.00020187,2]
[322919441,1713505838337,-205.90273997,0.00020187,2]
[322919442,1713505838346,-157.44717832,0.00020187,2]
[322919443,1713505838355,-234.91778789,0.00020883,2]
[322919444,1713505838364,-200.0,0.00020885,2]
[322919445,1713505838373,-505.89008151,0.00020885,2]
[322919446,1713505838383,-204.38055934,0.00020885,2]
[322919447,1713505838392,-440.38323878,0.00020886,2]
[322919448,1713505838401,-262.24652715,0.00020898,2]
[322919449,1713505838411,-179.52083428,0.00021142,2]
[322919450,1713505838420,-420.0,0.00021885,2]
[322919451,1713505838429,-1148.67731128,0.00021995,2]
[322919452,1713505838438,-548.13759643,0.00021998,2]
[322919453,1713505838449,-239.56640384,0.00021998,2]
[322919454,1713505838458,-156.47620602,0.00021998,2]
[322919455,1713505838467,-188.73935773,0.00021998,2]
[322919456,1713505838477,-166.55305538,0.00021998,2]
[322919457,1713505838486,-362.55782873,0.00021998,2]
[322919458,1713505838495,-624.06432451,0.00021998,2]
[322919459,1713505838504,-259.10748581,0.00021998,2]
[322919460,1713505838513,-348.82812917,0.00021998,2]
[322919462,1713505838522,-357.3474485,0.00021998,2]
[322919464,1713505838531,-157.35404407,0.00021998,2]
[322919465,1713505838540,-265.05271265,0.00021998,2]
[322919466,1713505838549,-300.0,0.00021998,2]
[322919467,1713505838559,-166.76208748,0.00021999,2]
[322919468,1713505838568,-31776.0363002,0.00022,2]
[322919469,1713505838581,-1813.31121731,0.00022,2]
[322919470,1713505838590,-158.89146937,0.00022,2]
[322919471,1713505838600,-291.79484208,0.00022111,2]
[322919478,1713505840036,-128.20515792,0.00022111,2]
[322919479,1713505840046,-179.52083428,0.00022281,2]
[322919480,1713505840055,-155.20841475,0.00023418,2]
[322919481,1713505840066,-159.108698,0.00023418,2]
[322919482,1713505840075,-661.80835277,0.00023419,2]
[322919483,1713505840085,-624.1113656,0.00023419,2]
[322919494,1713505843141,-863.89219465,0.00023419,2]
[322919495,1713505843151,-179.52083428,0.00023419,2]
[322919496,1713505843161,-373.15153744,0.0002342,2]
[322919497,1713505843170,-587.0,0.00023828,2]
[322919498,1713505843179,-153.08308672,0.000239,2]
[322919499,1713505843189,-587.0,0.00024322,2]
[322919500,1713505843201,-179.52083428,0.00024558,2]
[322919501,1713505843211,-200.0,0.00024658,15]
[322919502,1713505843220,-15533.6876925,0.00024658,10]
[322919503,1713505843229,-194.349296,0.00024658,2]
[322919504,1713505843240,-2478.41699354,0.00024888,2]
[322919505,1713505843250,-300.86987719,0.00025,2]
[322919506,1713505843260,-157.11152244,0.00025,2]
[322919507,1713505843270,-823.0,0.00025944,2]
[322919508,1713505843281,-587.0,0.000264,2]
[322919509,1713505843291,-153.8752209,0.00026521,2]
[322919510,1713505843302,-696.30805112,0.00026524,3]
[322919511,1713505843312,-168.05571198,0.0002673,2]
[322919512,1713505843322,-823.0,0.00026754,2]
[322919513,1713505843333,-155.04515791,0.00026996,2]
[322919514,1713505843343,-378.0379296,0.00026996,2]
[322919515,1713505843352,-239.37673181,0.00026997,2]
[322919516,1713505843361,-194.4688794,0.00026997,2]
[322919517,1713505843370,-659.54000933,0.00026997,2]
[322919518,1713505843380,-719.06510492,0.00026998,2]
[322919519,1713505843389,-1084.37239888,0.00027,2]
[322919562,1713505846068,-0.70355598,0.00027,2]
[322919623,1713505878326,500.0,0.00020101,2]
[322919624,1713505878356,500.0,0.00020101,2]
[322919625,1713505878402,500.0,0.00020101,2]
[322919626,1713505878447,500.0,0.00020101,2]
[322919627,1713505878479,500.0,0.00020101,2]
[322919628,1713505878509,500.0,0.00020101,2]
[322919629,1713505878543,395.87172438,0.00020101,2]
[322919630,1713505878574,500.0,0.00020101,2]
[322919631,1713505878607,500.0,0.00020101,2]
[322919632,1713505878661,171.23048661,0.00020101,2]
[322919633,1713505894703,847.6728516,0.000199,2]
[322919635,1713505908455,500.0,0.00020101,2]
[322919636,1713505908486,500.0,0.00020101,2]
[322919637,1713505908515,500.0,0.00020101,2]
[322919638,1713505908544,500.0,0.00020101,2]
[322919639,1713505908573,500.0,0.00020101,2]
[322919640,1713505908603,500.0,0.00020101,2]
[322919641,1713505908636,500.0,0.00020101,2]
[322919642,1713505908665,500.0,0.00020101,2]
[322919643,1713505908695,471.94191925,0.00020101,2]
[322919644,1713505908729,319.31929061,0.00020101,2]
[322919645,1713505908761,425.48814065,0.00020101,2]
[322919646,1713505913292,154.86062544,0.000201,2]
[322919654,1713506109609,414.13,0.00020101,2]
[322919662,1713506195942,565.1152344,0.000199,2]
[322919666,1713506280949,262.24652715,0.00019768,2]
[322919668,1713506350429,250.0,0.00019736,2]
[322919673,1713506464183,168.026845,0.00019439,2]
[322919676,1713506529867,379.729439,0.00019656,2]
[322919678,1713506594565,477.0,0.00025,30]
[322919685,1713506732034,24900.0,0.00019596,2]
[322919686,1713506756439,-434997.713747,0.00022,11]
[322919690,1713506798652,376.7434896,0.000199,2]
[322919691,1713506871141,900.0,0.000199,2]
[322919692,1713506887127,600.0,0.000199,2]
[322919694,1713506903132,500.0,0.000199,2]
[322919695,1713506919155,20000.0,0.0002,5]
[322919696,1713506919187,260.5,0.000199,2]
[322919697,1713506926465,524.07843337,0.00020573,60]
[322919698,1713506944391,524.07843337,0.00020534,60]
[322919699,1713506949628,260.5,0.000199,2]
[322919701,1713506960824,524.07843337,0.00020534,60]
[322919703,1713506970523,260.5,0.000199,2]
[322919704,1713506978411,524.07843337,0.00020534,60]
[322919705,1713506986718,260.5,0.000199,2]
[322919706,1713506996438,513.84958151,0.0002052,60]
[322919710,1713507008717,260.5,0.000199,2]
[322919712,1713507024714,260.5,0.000199,2]
[322919756,1713507032176,-1876.66751895,0.00020328,2]
[322919758,1713507032186,-154.86062544,0.00020328,2]
[322919760,1713507032195,-468.09250976,0.00020328,2]
[322919762,1713507032205,-4907.85944013,0.00020329,2]
[322919764,1713507032214,-154.86062544,0.00020428,2]
[322919766,1713507032222,-688.90875736,0.00020429,2]
[322919768,1713507032231,-154.86062544,0.00020429,2]
[322919770,1713507032240,-2097.87546031,0.0002043,2]
[322919772,1713507032249,-474.41717425,0.0002043,2]
[322919774,1713507032259,-2622.05694045,0.00020431,2]
[322919776,1713507032268,-204.00475123,0.00020431,2]
[322919778,1713507032277,-300.0,0.00020431,2]
[322919780,1713507032286,-154.86062544,0.00020431,2]
[322919782,1713507032296,-300.0,0.00020431,2]
[322919784,1713507032305,-154.86062544,0.00020432,2]
[322919786,1713507032315,-277.74702777,0.00020432,2]
[322919788,1713507032326,-154.86062544,0.00020432,2]
[322919790,1713507032335,-408.57291394,0.00020432,2]
[322919792,1713507032345,-1201.28235502,0.00020432,2]
[322919794,1713507032354,-154.86062544,0.00020433,2]
[322919796,1713507032364,-154.86062544,0.00020433,2]
[322919798,1713507032374,-977.06231715,0.00020433,2]
[322919800,1713507032383,-203.68217951,0.00020433,2]
[322919802,1713507032396,-284.47443673,0.00020433,2]
[322919804,1713507032407,-154.86062544,0.00020434,2]
[322919807,1713507032418,-300.0,0.00020434,2]
[322919809,1713507032427,-1674.52743334,0.00020434,2]
[322919811,1713507032436,-354.53717402,0.00020434,2]
[322919813,1713507032444,-193.45780411,0.00020434,2]
[322919815,1713507032453,-154.86062544,0.00020434,2]
[322919816,1713507032462,-263.62051254,0.00020436,2]
[322919818,1713507032471,-263.62051253,0.00020456,2]
[322919820,1713507032480,-263.62051253,0.00020476,2]
[322919822,1713507032489,-59112.64828846,0.0002052,2]
[322919824,1713507032498,-72510.41728967,0.00020521,2]
[322919826,1713507032507,-59112.64828846,0.00020522,2]
[322919829,1713507032517,-4098.02208353,0.00020537,2]
[322919831,1713507032526,-308.80589325,0.00020573,7]
[322919833,1713507032535,-966.61445294,0.00020573,2]
[322919835,1713507032545,-530.02022434,0.00020573,4]
[322919836,1713507032554,-500.0,0.00020574,2]
[322919838,1713507032563,-202.14658785,0.00020574,2]
[322919841,1713507032573,-500.0,0.00020574,2]
[322919842,1713507032582,-387.52893844,0.00020574,2]
[322919845,1713507032591,-5834.285613,0.00020574,2]
[322919847,1713507032601,-622.96914813,0.00020576,2]
[322919849,1713507032611,-156.73463547,0.00020581,2]
[322919851,1713507032620,-790.26187865,0.00020757,2]
[322919853,1713507032629,-154.86062544,0.00020758,2]
[322919855,1713507032642,-200.0,0.00020809,2]
[322919857,1713507032654,-505.89008151,0.00020809,2]
[322919858,1713507032663,-188.73935773,0.0002081,2]
[322919860,1713507032673,-154.86062544,0.00020893,2]
[322919862,1713507032682,-156.7346354,0.00020965,2]
[322919865,1713507032703,-166.76208748,0.00020998,2]
[322919867,1713507032713,-13557.47844325,0.00021,2]
[322919869,1713507032723,-156.7346354,0.00021348,2]
[322919871,1713507032733,-156.7346354,0.00021732,2]
[322919873,1713507032742,-158.92745084,0.00022,2]
[322919876,1713507032754,-156.7346354,0.00022115,2]
[322919878,1713507032763,-420.0,0.00022237,2]
[322919880,1713507032773,-420.0,0.00022474,2]
[322919882,1713507032782,-156.7346354,0.00022499,2]
[322919884,1713507032791,-5328.16514486,0.0002284,2]
[322919886,1713507032801,-156.7346354,0.00022882,2]
[322919888,1713507032810,-156.7346354,0.00023266,2]
[322919890,1713507032819,-156.7346354,0.00023649,2]
[322919892,1713507032829,-952.99563599,0.00024011,2]
[322919894,1713507032838,-156.7346354,0.00024033,2]
[322919895,1713507032847,-555.0,0.00024203,2]
[322919898,1713507032857,-1087.16136807,0.00024375,2]
[322919900,1713507032866,-156.7346354,0.00024416,2]
[322919901,1713507032875,-200.0,0.00024658,15]
[322919904,1713507032885,-587.0,0.00024722,2]
[322919905,1713507032899,-3422.57336226,0.00024798,2]
[322919908,1713507032909,-156.7346354,0.000248,2]
[322919909,1713507032918,-151.0,0.00024898,2]
[322919911,1713507032927,-151.0,0.00024898,2]
[322919914,1713507032938,-151.0,0.00024898,2]
[322919915,1713507032947,-200.05530503,0.000249,5]
[322919917,1713507032957,-376.7434896,0.000249,2]
[322919919,1713507032966,-157.11152244,0.00025,2]
[322919921,1713507032975,-643.3580684,0.00025594,2]
[322919923,1713507032985,-168.954828,0.00025716,2]
[322919925,1713507032994,-587.0,0.000266,2]
[322919927,1713507033003,-621.16790342,0.00026874,2]
[322919929,1713507033013,-783.87866091,0.00026971,2]
[322919931,1713507033022,-156.11519975,0.00026996,2]
[322919933,1713507033031,-156.8195941,0.00026996,2]
[322919935,1713507033041,-246.93293796,0.00026996,2]
[322919937,1713507033050,-563.87316233,0.00026996,2]
[322919939,1713507033059,-2584.94589356,0.00026996,2]
[322919941,1713507033068,-207.39175315,0.00026996,2]
[322919943,1713507033077,-204.07706122,0.00026996,2]
[322919945,1713507033087,-209.3590108,0.00026996,2]
[322919947,1713507033097,-1548.91382456,0.00026996,2]
[322919949,1713507033109,-156.54301374,0.00026996,2]
[322919951,1713507033118,-303.93539151,0.00026996,2]
[322919953,1713507033128,-158.22324381,0.00026996,2]
[322919955,1713507033136,-155.00650324,0.00026997,2]
[322919957,1713507033149,-5712.54496532,0.00026997,2]
[322919959,1713507033158,-207.2906563,0.00026997,2]
[322919961,1713507033168,-155.05207684,0.00026997,2]
[322919962,1713507033178,-155.9375448,0.00026997,2]
[322919963,1713507033187,-156.33367336,0.00026997,2]
[322919964,1713507033197,-151.0,0.00026997,2]
[322919965,1713507033206,-151.0,0.00026997,2]
[322919966,1713507033216,-151.0,0.00026997,2]
[322919967,1713507033225,-151.0,0.00026997,2]
[322919968,1713507033235,-186.5238002,0.00026998,2]
[322919969,1713507033245,-154.86062544,0.00026998,2]
[322919970,1713507033255,-400.0,0.00026998,2]
[322919971,1713507033264,-154.94680023,0.00026998,2]
[322919972,1713507033274,-155.11185496,0.00026998,2]
[322919973,1713507033283,-882.7275178,0.00026998,2]
[322919974,1713507033293,-155.49245015,0.00026998,2]
[322919975,1713507033302,-157.5764134,0.00026998,2]
[322919976,1713507033312,-162.42129719,0.00026998,2]
[322919977,1713507033321,-155.11799303,0.00026998,2]
[322919978,1713507033331,-154.86062544,0.00026998,2]
[322919979,1713507033340,-282.92215931,0.00026998,2]
[322919980,1713507033350,-654.45266231,0.00026998,2]
[322919981,1713507033359,-156.1875847,0.00026998,2]
[322919982,1713507033369,-302.24846984,0.00026998,2]
[322919983,1713507033378,-300.77186614,0.00026998,2]
[322919984,1713507033391,-163.2177057,0.00026998,2]
[322919985,1713507033400,-155.23863388,0.00026998,2]
[322919986,1713507033410,-8513.97990908,0.00026998,2]
[322919987,1713507033420,-154.86062544,0.00026998,2]
[322919988,1713507033430,-171.96448604,0.00026998,2]
[322919989,1713507033439,-211.83113783,0.00026998,2]
[322919990,1713507033449,-155.34744831,0.00026998,2]
[322919991,1713507033458,-181.65116528,0.00026998,2]
[322919992,1713507033468,-155.12220552,0.00026998,2]
[322919993,1713507033477,-936.94622999,0.00026998,2]
[322919994,1713507033487,-161.3453046,0.00026998,2]
[322919995,1713507033497,-173.66396175,0.00026998,2]
[322919996,1713507033506,-154.86062544,0.00026998,2]
[322919997,1713507033515,-1574.32701702,0.00026998,2]
[322919998,1713507033524,-240.28320758,0.00026998,2]
[322919999,1713507033534,-246.31980084,0.00026998,2]
[322920000,1713507033543,-155.11670056,0.00026998,2]
[322920001,1713507033552,-240.94703798,0.00026998,2]
[322920002,1713507033562,-172.18144535,0.00026998,2]
[322920003,1713507033571,-156.84586358,0.00026998,2]
[322920004,1713507033580,-1310.15475715,0.00026998,2]
[322920005,1713507033590,-193.98190603,0.00026998,2]
[322920006,1713507033599,-156.22571937,0.00026998,2]
[322920007,1713507033608,-155.02705951,0.00026998,2]
[322920008,1713507033617,-184.7891742,0.00026998,2]
[322920009,1713507033627,-302.65587098,0.00026998,2]
[322920010,1713507033636,-207.81196997,0.00026998,2]
[322920011,1713507033649,-186.90812025,0.00026998,2]
[322920012,1713507033658,-155.08624768,0.00026998,2]
[322920013,1713507033668,-155.6894373,0.00026998,2]
[322920014,1713507033677,-154.98071389,0.00026998,2]
[322920015,1713507033687,-265.09873219,0.00026998,2]
[322920016,1713507033697,-69.22574902,0.00026998,2]
[322920017,1713507033714,-81.77425098,0.00026998,2]
[322920018,1713507033723,-151.0,0.00026998,2]
[322920019,1713507033732,-151.0,0.00026998,2]
[322920020,1713507033741,-151.0,0.00026998,2]
[322920021,1713507033750,-1724.223686,0.00026998,2]
[322920022,1713507033759,-1724.223686,0.00026998,2]
[322920023,1713507033770,-429.87349877,0.00026999,2]
[322920024,1713507033780,-6496.80428796,0.00027,2]
[322920025,1713507033789,-6180.0,0.00027,2]
[322920026,1713507033798,-220.44087813,0.00027,2]
[322920027,1713507033808,-950.0,0.00027,2]
[322920028,1713507033816,-154.86062544,0.00027,2]
[322920029,1713507033826,-332.21467201,0.00027,2]
[322920030,1713507033836,-6747.01885684,0.00027,2]
[322920031,1713507033845,-285.46492286,0.00027,2]
[322920032,1713507033854,-307.48022056,0.00027,2]
[322920033,1713507033864,-96780.76991435,0.00027,2]
[322920034,1713507033873,-157.331752,0.00027,2]
[322920035,1713507033882,-151.0,0.00027,2]
[322920036,1713507033895,-151.0,0.00027,2]
[322920037,1713507033904,-151.0,0.00027,2]
[322920038,1713507033913,-151.0,0.00027,2]
[322920039,1713507033923,-151.0,0.00027,2]
[322920040,1713507033931,-254.286311,0.00027,2]
[322920041,1713507033940,-150.0,0.00027,2]
[322920042,1713507033950,-1000.0,0.00027,2]
[322920043,1713507033959,-100.87886878,0.00027,2]
[322920072,1713507038160,-539.43970623,0.00020327,2]
[322920073,1713507038171,-154.86062544,0.00020327,2]
[322920074,1713507038180,-154.86062544,0.00020327,2]
[322920075,1713507038191,-154.86062544,0.00020327,2]
[322920076,1713507038200,-471.31782646,0.00020327,2]
[322920077,1713507038210,-32.22835504,0.00020327,2]
[322920107,1713507040716,260.5,0.000199,2]
[322920126,1713507043391,-437.04104068,0.00020327,2]
[322920127,1713507043402,-154.86062544,0.00020327,2]
[322920128,1713507043412,-1505.09069401,0.00020421,2]
[322920129,1713507043422,-1505.09069399,0.00020421,2]
[322920130,1713507043431,-1505.09069399,0.00020422,2]
[322920131,1713507043441,-1505.09069399,0.00020422,2]
[322920132,1713507043451,-1505.09069399,0.00020422,2]
[322920133,1713507043461,-154.16988205,0.00020519,2]
[322920134,1713507043471,-234.91778789,0.0002052,2]
[322920135,1713507043481,-50.12113122,0.00027,2]
[322920136,1713507043490,-1724.223686,0.00027,2]
[322920137,1713507043499,-1380.67555091,0.00027,2]
[322920153,1713507064718,260.5,0.000199,2]
[322920154,1713507084715,260.5,0.000199,2]
[322920157,1713507108726,260.5,0.000199,2]
[322920159,1713507128911,395.0,0.000199,2]
[322920182,1713508003484,150.0,0.000189,2]
[322920191,1713508209923,699.028873,0.00019711,2]
[322920311,1713508240444,-354.53717402,0.00020466,2]
[322920312,1713508240454,-204.00475123,0.00020466,2]
[322920313,1713508240465,-154.86062544,0.00020467,2]
[322920314,1713508240474,-300.0,0.00020468,2]
[322920315,1713508240483,-154.86062544,0.00020469,2]
[322920316,1713508240493,-300.0,0.00020517,2]
[322920317,1713508240502,-300.0,0.00020517,2]
[322920318,1713508240511,-2620.22735699,0.00020518,2]
[322920319,1713508240525,-155.87541847,0.00020518,2]
[322920320,1713508240534,-156.77644139,0.00020518,2]
[322920321,1713508240543,-204.47294074,0.00020519,2]
[322920322,1713508240553,-157.41918186,0.00021071,2]
[322920323,1713508240562,-44228.86934744,0.00021169,2]
[322920350,1713508304608,150.0,0.00019069,2]
[322920351,1713508437518,522.23103834,0.0002007,2]